Workbook

Sheet 開始
B1: 關於此範本
B2: 使用每月大學生活預算工作表來追蹤收入、費用和現金流量。
B3: 輸入每月收入和支出來計算總收入和總支出。
B4: 現金流量已自動計算，並且已為您更新現金流量圖表。
B5: 選取滑桿來取得某個月份和年度的收入、費用和現金流量圖。
B6: 附註：
B7: 我們已在工作表的欄 A 提供額外指示。此文字已刻意隱藏。若要移除文字，請選取欄 A，然後選取 [刪除]。若要取消隱藏文字，請選取欄 A，然後變更字型色彩。

Sheet 每月大學生活預算
A1: 在此工作表中建立每月大學生活預算。此工作表的標題在右側儲存格與儲存格 B1 中。有關如何使用此工作表的實用指示位於此欄的儲存格中。下一個指示位於儲存格 A4。 | B1: 每月大學生活預算
A4: 收入標籤在右側儲存格中，費用標籤在儲存格 E4，而現金流量標籤在 M4 中。 | B4: =chart_calcs!$D$6 -> 年份收入: | E4: =chart_calcs!$D$7 -> 年份支出: | M4: =chart_calcs!$D$8 -> 年份現金流量:
A5: 收入會在右側儲存格中自動更新，費用在儲存格 E5，而現金流量在 M5。 | B5: =" "&chart_calcs!$F$6 ->  | E5: =" "&chart_calcs!$F$7 ->  | M5: =" "&chart_calcs!$F$8 -> NT$169
A6: 顯示收入彙總的同心圓圖在右側儲存格中，費用摘要在儲存格 E6，而儲存格 M6 中顯示正負數現金流量的橫條圖會自動更新。下一個指示位於儲存格 A17。 | B6: 顯示所選月份或年份收入摘要的同心圓圖在此儲存格中。 | E6: 顯示所選月份或年份費用摘要的同心圓圖在此儲存格中。 | M6: 顯示選取的月份或年度正負數現金流量的橫條圖在此儲存格。
B16: 顯示所選月份或年份現金流量的折線圖在此儲存格中。
A17: 現金流量折線圖在右側儲存格。下一個指示位於儲存格 A21。
A21: 選取滑桿，以取得每月或每年收入、費用和現金流量資料和圖表。下一個指示位於儲存格 A25。 | B21: 滑桿在此儲存格中。
A25: 在右側儲存格選取月份。按 ALT+向下鍵來查看選項，然後按向下鍵和 ENTER 來選取。 | B25: 1月
A26: 選取的期間會在儲存格 P26 中自動更新。 | P26: =SelectedPeriod -> 
A27: 標籤在此列，費用之後的每月現金標籤在右側儲存格中，月份在儲存格 C27 到 N27，年份在 O27，以及百分比增加在 P27。 | B27: 費用之後的每月現金 | C27: =FirstMonth ->  | D27: =NextMonth ->  | O27: 年度 | P27: % INC
A28: 現金流量標籤在右側儲存格中。每個月的現金流量會自動計算在儲存格 C28 到 N28，每年數量在 O28，以及百分比增加在 P28。走勢圖會在 Q28 中自動更新。 | B28: 現金流量 | C28: =C37-C72 -> 169 | D28: 69 | E28: 192 | F28: 199 | G28: 204 | H28: (771) | I28: 124 | J28: 154 | K28: (721) | L28: 109 | M28: 34 | N28: (61) | O28: =SUM(C28:N28) -> (299) | P28: =INDEX($C28:$O28,,SelectedPeriodColumn)/INDEX($C$37:$O$37,,SelectedPeriodColumn) -> 
A29: 累計現金流量標籤在右側儲存格中。每個月的累計現金流量會自動計算在儲存格 C29 到 N29，每年數量在 O29，以及百分比增加在 P29。走勢圖會在 Q29 中自動更新。下一個指示位於儲存格 A31。 | B29: 累計現金流量 | C29: =SUM($C$28:C$28) -> 169 | D29: =SUM($C$28:D$28) -> 238 | E29: =SUM($C$28:E$28) -> 430 | F29: =SUM($C$28:F$28) -> 629 | G29: =SUM($C$28:G$28) -> 833 | H29: =SUM($C$28:H$28) -> 62 | I29: =SUM($C$28:I$28) -> 186 | J29: =SUM($C$28:J$28) -> 340 | K29: =SUM($C$28:K$28) -> (381) | L29: =SUM($C$28:L$28) -> (272) | M29: =SUM($C$28:M$28) -> (238) | N29: =SUM($C$28:N$28) -> (299)
A31: 每月收入標籤在右側儲存格中，月份在儲存格 C31 至 N31，年份在 O31，以及百分比增加標籤在 P31。在儲存格 B32 到 B36 輸入每月收入項目，以及在儲存格 C32 到 N36 輸入每月金額。每年收入會自動計算在儲存格 O32 到 O36，以及百分比增加在儲存格 P32 到 P36。下一個指示在儲存格 A37。 | B31: 月收入 | C31: =FirstMonth ->  | D31: =NextMonth ->  | O31: 年度 | P31: % INC
B32: 支付給您的財務支援 (授權、獎學金、貸款) | C32: 0 | D32: 0 | E32: 750 | F32: 750 | G32: 750 | H32: 750 | I32: 750 | J32: 750 | K32: 750 | L32: 750 | M32: 750 | N32: 750 | O32: =SUM(C32:N32) -> 7,500 | P32: =INDEX($C32:$O32,,SelectedPeriodColumn)/INDEX($C$37:$O$37,,SelectedPeriodColumn) -> 
B33: 工作稅後薪水 | C33: 450 | D33: 450 | E33: 450 | F33: 450 | G33: 450 | H33: 450 | I33: 450 | J33: 450 | K33: 550 | L33: 350 | M33: 350 | N33: 350 | O33: 5,200 | P33: =INDEX($C33:$O33,,SelectedPeriodColumn)/INDEX($C$37:$O$37,,SelectedPeriodColumn) -> 
B34: 家人的財務協助 | C34: 200 | D34: 200 | E34: 1,000 | F34: 350 | G34: 350 | H34: 350 | I34: 350 | J34: 350 | K34: 350 | L34: 350 | M34: 350 | N34: 350 | O34: 4,550 | P34: =INDEX($C34:$O34,,SelectedPeriodColumn)/INDEX($C$37:$O$37,,SelectedPeriodColumn) -> 
B35: 從存款提款 | C35: 500 | D35: 350 | E35: 150 | F35: 0 | G35: 0 | H35: 0 | I35: 0 | J35: 0 | K35: 0 | L35: 0 | M35: 0 | N35: 0 | O35: 1,000 | P35: =INDEX($C35:$O35,,SelectedPeriodColumn)/INDEX($C$37:$O$37,,SelectedPeriodColumn) -> 
B36: 其他 (子女撫育費、公用協助、禮物等等) | C36: 75 | D36: 75 | E36: 75 | F36: 75 | G36: 75 | H36: 75 | I36: 75 | J36: 75 | K36: 75 | L36: 75 | M36: 75 | N36: 75 | O36: 900 | P36: =INDEX($C36:$O36,,SelectedPeriodColumn)/INDEX($C$37:$O$37,,SelectedPeriodColumn) -> 
A37: 總收入標籤在右側儲存格中。每個月的總收入會自動計算在儲存格 C37 到 N37，每年收入在 O37，以及百分比增加在 P37。走勢圖會在 Q37 中自動更新。下一個指示位於儲存格 A39。 | B37: 總收入 | C37: =SUM(C32:C36) -> 1,225 | D37: 1,075 | E37: 2,425 | F37: 1,625 | G37: 1,625 | H37: 1,625 | I37: 1,625 | J37: 1,625 | K37: 1,725 | L37: 1,525 | M37: 1,525 | N37: 1,525 | O37: 19,150 | P37: =INDEX($C37:$O37,,SelectedPeriodColumn)/INDEX($C$37:$O$37,,SelectedPeriodColumn) -> 
A39: 每月費用標籤在右側儲存格中，月份在儲存格 C39 至 N39，年度在 O39，以及百分比增加標籤在 P39。 | B39: 每月費用 | C39: =FirstMonth ->  | D39: =NextMonth ->  | O39: 年度 | P39: % INC
A40: 在右側儲存格中輸入或修改費用，以及在儲存格 C40 到 N43 輸入每月金額。每年金額會自動計算在儲存格 O40 到 O43，以及百分比增加在儲存格 P40 到 P43。走勢圖會在 Q40 中自動更新。下一個指示位於儲存格 A45。 | B40: 食宿 | C40: =SUM(C41:C43) -> 565 | D40: 565 | E40: 565 | F40: 565 | G40: 565 | H40: 565 | I40: 565 | J40: 565 | K40: 565 | L40: 565 | M40: 565 | N40: 565 | O40: =SUM(C40:N40) -> 6,780 | P40: =INDEX($C40:$O40,,SelectedPeriodColumn)/INDEX($C$72:$O$72,,SelectedPeriodColumn) -> 
C41: 315 | D41: 315 | E41: 315 | F41: 315 | G41: 315 | H41: 315 | I41: 315 | J41: 315 | K41: 315 | L41: 315 | M41: 315 | N41: 315 | O41: =SUM(C41:N41) -> 3,780 | P41: =INDEX($C41:$O41,,SelectedPeriodColumn)/INDEX($C$72:$O$72,,SelectedPeriodColumn) -> 
C42: 200 | D42: 200 | E42: 200 | F42: 200 | G42: 200 | H42: 200 | I42: 200 | J42: 200 | K42: 200 | L42: 200 | M42: 200 | N42: 200 | O42: =SUM(C42:N42) -> 2,400 | P42: =INDEX($C42:$O42,,SelectedPeriodColumn)/INDEX($C$72:$O$72,,SelectedPeriodColumn) -> 
C43: 50 | D43: 50 | E43: 50 | F43: 50 | G43: 50 | H43: 50 | I43: 50 | J43: 50 | K43: 50 | L43: 50 | M43: 50 | N43: 50 | O43: =SUM(C43:N43) -> 600 | P43: =INDEX($C43:$O43,,SelectedPeriodColumn)/INDEX($C$72:$O$72,,SelectedPeriodColumn) -> 
A45: 在右側儲存格中輸入或修改費用，以及在儲存格 C45 到 N47 輸入每月金額。每年金額會自動計算在儲存格 O45 到 O47，以及百分比增加在儲存格 P45 到 P47。走勢圖會在 Q45 中自動更新。下一個指示位於儲存格 A49。 | B45: 學費與費用 | C45: =SUM(C46:C47) -> 0 | D45: 0 | E45: 750 | F45: 0 | G45: 0 | H45: 650 | I45: 0 | J45: 0 | K45: 650 | L45: 0 | M45: 0 | N45: 0 | O45: =SUM(C45:N45) -> 2,050 | P45: =INDEX($C45:$O45,,SelectedPeriodColumn)/INDEX($C$72:$O$72,,SelectedPeriodColumn) -> 
C46: 0 | D46: 0 | E46: 500 | F46: 0 | G46: 0 | H46: 500 | I46: 0 | J46: 0 | K46: 500 | L46: 0 | M46: 0 | N46: 0 | O46: =SUM(C46:N46) -> 1,500 | P46: =INDEX($C46:$O46,,SelectedPeriodColumn)/INDEX($C$72:$O$72,,SelectedPeriodColumn) -> 
C47: 0 | D47: 0 | E47: 250 | F47: 0 | G47: 0 | H47: 150 | I47: 0 | J47: 0 | K47: 150 | L47: 0 | M47: 0 | N47: 0 | O47: =SUM(C47:N47) -> 550 | P47: =INDEX($C47:$O47,,SelectedPeriodColumn)/INDEX($C$72:$O$72,,SelectedPeriodColumn) -> 
A49: 在右側儲存格中輸入或修改費用，以及在儲存格 C49 到 N51 輸入每月金額。每年金額會自動計算在儲存格 O49 到 O51，以及百分比增加在儲存格 P49 到 P51。走勢圖會在 Q49 中自動更新。下一個指示位於儲存格 A53。 | B49: 書籍與用品 | C49: =SUM(C50:C51) -> 0 | D49: 0 | E49: 325 | F49: 20 | G49: 20 | H49: 325 | I49: 10 | J49: 10 | K49: 400 | L49: 15 | M49: 15 | N49: 15 | O49: =SUM(C49:N49) -> 1,155 | P49: =INDEX($C49:$O49,,SelectedPeriodColumn)/INDEX($C$72:$O$72,,SelectedPeriodColumn) -> 
C50: 0 | D50: 0 | E50: 225 | F50: 0 | G50: 0 | H50: 275 | I50: 0 | J50: 0 | K50: 325 | L50: 0 | M50: 0 | N50: 0 | O50: =SUM(C50:N50) -> 825 | P50: =INDEX($C50:$O50,,SelectedPeriodColumn)/INDEX($C$72:$O$72,,SelectedPeriodColumn) -> 
C51: 0 | D51: 0 | E51: 100 | F51: 20 | G51: 20 | H51: 50 | I51: 10 | J51: 10 | K51: 75 | L51: 15 | M51: 15 | N51: 15 | O51: =SUM(C51:N51) -> 330 | P51: =INDEX($C51:$O51,,SelectedPeriodColumn)/INDEX($C$72:$O$72,,SelectedPeriodColumn) -> 
A53: 在右側儲存格中輸入或修改費用，以及在儲存格 C53 到 N57 輸入每月金額。每年金額會自動計算在儲存格 O53 到 O57，以及百分比增加在儲存格 P53 到 P57。走勢圖會在 Q53 中自動更新。下一個指示位於儲存格 A59。 | B53: 交通 | C53: =SUM(C54:C57) -> 224 | D53: 174 | E53: 174 | F53: 219 | G53: 174 | H53: 174 | I53: 274 | J53: 219 | K53: 174 | L53: 174 | M53: 224 | N53: 269 | O53: =SUM(C53:N53) -> 2,473 | P53: =INDEX($C53:$O53,,SelectedPeriodColumn)/INDEX($C$72:$O$72,,SelectedPeriodColumn) -> 
C54: 30 | D54: 30 | E54: 30 | F54: 75 | G54: 30 | H54: 30 | I54: 30 | J54: 75 | K54: 30 | L54: 30 | M54: 30 | N54: 75 | O54: =SUM(C54:N54) -> 495 | P54: =INDEX($C54:$O54,,SelectedPeriodColumn)/INDEX($C$72:$O$72,,SelectedPeriodColumn) -> 
C55: 129 | D55: 129 | E55: 129 | F55: 129 | G55: 129 | H55: 129 | I55: 129 | J55: 129 | K55: 129 | L55: 129 | M55: 129 | N55: 129 | O55: =SUM(C55:N55) -> 1,548 | P55: =INDEX($C55:$O55,,SelectedPeriodColumn)/INDEX($C$72:$O$72,,SelectedPeriodColumn) -> 
C56: 15 | D56: 15 | E56: 15 | F56: 15 | G56: 15 | H56: 15 | I56: 15 | J56: 15 | K56: 15 | L56: 15 | M56: 15 | N56: 15 | O56: =SUM(C56:N56) -> 180 | P56: =INDEX($C56:$O56,,SelectedPeriodColumn)/INDEX($C$72:$O$72,,SelectedPeriodColumn) -> 
C57: 50 | D57: 0 | E57: 0 | F57: 0 | G57: 0 | H57: 0 | I57: 100 | J57: 0 | K57: 0 | L57: 0 | M57: 50 | N57: 50 | O57: =SUM(C57:N57) -> 250 | P57: =INDEX($C57:$O57,,SelectedPeriodColumn)/INDEX($C$72:$O$72,,SelectedPeriodColumn) -> 
A59: 在右側儲存格中輸入或修改費用，以及在儲存格 C59 到 N65 輸入每月金額。每年金額會自動計算在儲存格 O59 到 O65，以及百分比增加在儲存格 P59 到 P65。走勢圖會在 Q59 中自動更新。下一個指示在儲存格 A67。 | B59: 自由支出 | C59: =SUM(C60:C65) -> 69 | D59: 69 | E59: 169 | F59: 369 | G59: 419 | H59: 444 | I59: 419 | J59: 419 | K59: 394 | L59: 394 | M59: 419 | N59: 469 | O59: =SUM(C59:N59) -> 4,053 | P59: =INDEX($C59:$O59,,SelectedPeriodColumn)/INDEX($C$72:$O$72,,SelectedPeriodColumn) -> 
C60: 0 | D60: 0 | E60: 0 | F60: 50 | G60: 100 | H60: 100 | I60: 100 | J60: 100 | K60: 75 | L60: 75 | M60: 100 | N60: 100 | O60: 800 | P60: =INDEX($C60:$O60,,SelectedPeriodColumn)/INDEX($C$72:$O$72,,SelectedPeriodColumn) -> 
C61: 69 | D61: 69 | E61: 69 | F61: 69 | G61: 69 | H61: 69 | I61: 69 | J61: 69 | K61: 69 | L61: 69 | M61: 69 | N61: 69 | O61: 828 | P61: =INDEX($C61:$O61,,SelectedPeriodColumn)/INDEX($C$72:$O$72,,SelectedPeriodColumn) -> 
C62: 0 | D62: 0 | E62: 0 | F62: 0 | G62: 0 | H62: 25 | I62: 0 | J62: 0 | K62: 0 | L62: 0 | M62: 0 | N62: 50 | O62: 75 | P62: =INDEX($C62:$O62,,SelectedPeriodColumn)/INDEX($C$72:$O$72,,SelectedPeriodColumn) -> 
C63: 0 | D63: 0 | E63: 100 | F63: 100 | G63: 100 | H63: 100 | I63: 100 | J63: 100 | K63: 100 | L63: 100 | M63: 100 | N63: 100 | O63: 1,000 | P63: =INDEX($C63:$O63,,SelectedPeriodColumn)/INDEX($C$72:$O$72,,SelectedPeriodColumn) -> 
C64: 0 | D64: 0 | E64: 0 | F64: 50 | G64: 50 | H64: 50 | I64: 50 | J64: 50 | K64: 50 | L64: 50 | M64: 50 | N64: 50 | O64: 450 | P64: =INDEX($C64:$O64,,SelectedPeriodColumn)/INDEX($C$72:$O$72,,SelectedPeriodColumn) -> 
C65: 0 | D65: 0 | E65: 0 | F65: 100 | G65: 100 | H65: 100 | I65: 100 | J65: 100 | K65: 100 | L65: 100 | M65: 100 | N65: 100 | O65: 900 | P65: =INDEX($C65:$O65,,SelectedPeriodColumn)/INDEX($C$72:$O$72,,SelectedPeriodColumn) -> 
A67: 在右側儲存格中輸入或修改費用，以及在儲存格 C67 到 N70 輸入每月金額。每年金額會自動計算在儲存格 O67 到 O70，以及百分比增加在儲存格 P67 到 P70。走勢圖會在 Q67 中自動更新。下一個指示在儲存格 A72。 | B67: 其他費用 | C67: =SUM(C68:C70) -> 198 | D67: =SUM(D68:D70) -> 198 | E67: 250 | F67: 253 | G67: 243 | H67: 238 | I67: 233 | J67: 258 | K67: 263 | L67: 268 | M67: 268 | N67: 268 | O67: =SUM(C67:N67) -> 2,938 | P67: =INDEX($C67:$O67,,SelectedPeriodColumn)/INDEX($C$72:$O$72,,SelectedPeriodColumn) -> 
C68: 123 | D68: 123 | E68: 123 | F68: 123 | G68: 123 | H68: 123 | I68: 123 | J68: 123 | K68: 123 | L68: 123 | M68: 123 | N68: 123 | O68: =SUM(C68:N68) -> 1,476 | P68: =INDEX($C68:$O68,,SelectedPeriodColumn)/INDEX($C$72:$O$72,,SelectedPeriodColumn) -> 
C69: 0 | D69: 0 | E69: 52 | F69: 55 | G69: 45 | H69: 40 | I69: 35 | J69: 60 | K69: 65 | L69: 70 | M69: 70 | N69: 70 | O69: =SUM(C69:N69) -> 562 | P69: =INDEX($C69:$O69,,SelectedPeriodColumn)/INDEX($C$72:$O$72,,SelectedPeriodColumn) -> 
C70: 75 | D70: 75 | E70: 75 | F70: 75 | G70: 75 | H70: 75 | I70: 75 | J70: 75 | K70: 75 | L70: 75 | M70: 75 | N70: 75 | O70: =SUM(C70:N70) -> 900 | P70: =INDEX($C70:$O70,,SelectedPeriodColumn)/INDEX($C$72:$O$72,,SelectedPeriodColumn) -> 
A72: 總費用標籤在右側儲存格中。每個月的總費用會自動計算在儲存格 C72 到 N72，每年費用在 O72，以及百分比增加在 P72。走勢圖會在 Q72 中自動更新。 | B72: 總費用 | C72: =SUM(C40,C45,C49,C53,C59,C67) -> 1,056 | D72: 1,006 | E72: 2,233 | F72: 1,426 | G72: 1,421 | H72: 2,396 | I72: 1,501 | J72: 1,471 | K72: 2,446 | L72: 1,416 | M72: 1,491 | N72: 1,586 | O72: =SUM(C72:N72) -> 19,449 | P72: =INDEX($C72:$O72,,SelectedPeriodColumn)/INDEX($C$72:$O$72,,SelectedPeriodColumn) -> 

Sheet chart_calcs (hidden)
A1: ***此工作表應該保持隱藏***
D3: =IFERROR(LOWER(TEXT(VALUE(LEFT(SelectedPeriod,LEN(SelectedPeriod)-1))&"/1","m月")),"年份") -> 年份
D5: 動態圖表標題
D6: =D3&"收入:" -> 年份收入: | F6: ="NT$"&TEXT(INDEX(每月大學生活預算!$C$37:$O$37,SelectedPeriodColumn),"#,###") -> 
D7: =D3&"支出:" -> 年份支出: | F7: ="NT$"&TEXT(INDEX(每月大學生活預算!$C$72:$O$72,,SelectedPeriodColumn),"#,###") -> 
D8: =D3&"現金流量:" -> 年份現金流量: | E8: =INDEX(每月大學生活預算!C28:O28,ScrollBarValue) -> 169 | F8: ="NT$"&TEXT(E8,"#,###") -> NT$169
D12: =LOWER(每月大學生活預算!C27) ->  | E12: =LOWER(每月大學生活預算!D27) ->  | F12: =LOWER(每月大學生活預算!E27) ->  | G12: =LOWER(每月大學生活預算!F27) ->  | H12: =LOWER(每月大學生活預算!G27) ->  | I12: =LOWER(每月大學生活預算!H27) ->  | J12: =LOWER(每月大學生活預算!I27) ->  | K12: =LOWER(每月大學生活預算!J27) ->  | L12: =LOWER(每月大學生活預算!K27) ->  | M12: =LOWER(每月大學生活預算!L27) ->  | N12: =LOWER(每月大學生活預算!M27) ->  | O12: =LOWER(每月大學生活預算!N27) ->  | P12: =LOWER(每月大學生活預算!O27) -> 年度
C13: 捲軸值： | D13: 1
C14: 現金流量圖表： | D14: =IF(SelectedPeriod=每月大學生活預算!C$31,IF(每月大學生活預算!$C$28:$O$28>=0,每月大學生活預算!$C$28:$O$28,NA()),NA()) ->  | E14: =IF(SelectedPeriod=每月大學生活預算!D$31,IF(每月大學生活預算!$C$28:$O$28>=0,每月大學生活預算!$C$28:$O$28,NA()),NA()) ->  | F14: =IF(SelectedPeriod=每月大學生活預算!E$31,IF(每月大學生活預算!$C$28:$O$28>=0,每月大學生活預算!$C$28:$O$28,NA()),NA()) ->  | G14: =IF(SelectedPeriod=每月大學生活預算!F$31,IF(每月大學生活預算!$C$28:$O$28>=0,每月大學生活預算!$C$28:$O$28,NA()),NA()) ->  | H14: =IF(SelectedPeriod=每月大學生活預算!G$31,IF(每月大學生活預算!$C$28:$O$28>=0,每月大學生活預算!$C$28:$O$28,NA()),NA()) ->  | I14: =IF(SelectedPeriod=每月大學生活預算!H$31,IF(每月大學生活預算!$C$28:$O$28>=0,每月大學生活預算!$C$28:$O$28,NA()),NA()) ->  | J14: =IF(SelectedPeriod=每月大學生活預算!I$31,IF(每月大學生活預算!$C$28:$O$28>=0,每月大學生活預算!$C$28:$O$28,NA()),NA()) ->  | K14: =IF(SelectedPeriod=每月大學生活預算!J$31,IF(每月大學生活預算!$C$28:$O$28>=0,每月大學生活預算!$C$28:$O$28,NA()),NA()) ->  | L14: =IF(SelectedPeriod=每月大學生活預算!K$31,IF(每月大學生活預算!$C$28:$O$28>=0,每月大學生活預算!$C$28:$O$28,NA()),NA()) ->  | M14: =IF(SelectedPeriod=每月大學生活預算!L$31,IF(每月大學生活預算!$C$28:$O$28>=0,每月大學生活預算!$C$28:$O$28,NA()),NA()) ->  | N14: =IF(SelectedPeriod=每月大學生活預算!M$31,IF(每月大學生活預算!$C$28:$O$28>=0,每月大學生活預算!$C$28:$O$28,NA()),NA()) ->  | O14: =IF(SelectedPeriod=每月大學生活預算!N$31,IF(每月大學生活預算!$C$28:$O$28>=0,每月大學生活預算!$C$28:$O$28,NA()),NA()) ->  | P14: =IF(SelectedPeriod=每月大學生活預算!O$31,IF(每月大學生活預算!$C$28:$O$28>=0,每月大學生活預算!$C$28:$O$28,NA()),NA()) -> 
C15: 累計： | D15: =IF(SelectedPeriod=每月大學生活預算!C$31,IF(每月大學生活預算!$C$28:$O$28<0,每月大學生活預算!$C$28:$O$28,NA()),NA()) ->  | E15: =IF(SelectedPeriod=每月大學生活預算!D$31,IF(每月大學生活預算!$C$28:$O$28<0,每月大學生活預算!$C$28:$O$28,NA()),NA()) ->  | F15: =IF(SelectedPeriod=每月大學生活預算!E$31,IF(每月大學生活預算!$C$28:$O$28<0,每月大學生活預算!$C$28:$O$28,NA()),NA()) ->  | G15: =IF(SelectedPeriod=每月大學生活預算!F$31,IF(每月大學生活預算!$C$28:$O$28<0,每月大學生活預算!$C$28:$O$28,NA()),NA()) ->  | H15: =IF(SelectedPeriod=每月大學生活預算!G$31,IF(每月大學生活預算!$C$28:$O$28<0,每月大學生活預算!$C$28:$O$28,NA()),NA()) ->  | I15: =IF(SelectedPeriod=每月大學生活預算!H$31,IF(每月大學生活預算!$C$28:$O$28<0,每月大學生活預算!$C$28:$O$28,NA()),NA()) ->  | J15: =IF(SelectedPeriod=每月大學生活預算!I$31,IF(每月大學生活預算!$C$28:$O$28<0,每月大學生活預算!$C$28:$O$28,NA()),NA()) ->  | K15: =IF(SelectedPeriod=每月大學生活預算!J$31,IF(每月大學生活預算!$C$28:$O$28<0,每月大學生活預算!$C$28:$O$28,NA()),NA()) ->  | L15: =IF(SelectedPeriod=每月大學生活預算!K$31,IF(每月大學生活預算!$C$28:$O$28<0,每月大學生活預算!$C$28:$O$28,NA()),NA()) ->  | M15: =IF(SelectedPeriod=每月大學生活預算!L$31,IF(每月大學生活預算!$C$28:$O$28<0,每月大學生活預算!$C$28:$O$28,NA()),NA()) ->  | N15: =IF(SelectedPeriod=每月大學生活預算!M$31,IF(每月大學生活預算!$C$28:$O$28<0,每月大學生活預算!$C$28:$O$28,NA()),NA()) ->  | O15: =IF(SelectedPeriod=每月大學生活預算!N$31,IF(每月大學生活預算!$C$28:$O$28<0,每月大學生活預算!$C$28:$O$28,NA()),NA()) ->  | P15: =IF(SelectedPeriod=每月大學生活預算!O$31,IF(每月大學生活預算!$C$28:$O$28<0,每月大學生活預算!$C$28:$O$28,NA()),NA()) -> 
C18: 收入圖表資料
C19: 支付給您的財務支援 (授權、獎學金、貸款) | D19: =每月大學生活預算!P32 -> 
C20: 工作稅後薪水 | D20: =每月大學生活預算!P33 -> 
C21: 家人的財務協助 | D21: =每月大學生活預算!P34 -> 
C22: 從存款提款 | D22: =每月大學生活預算!P35 -> 
C23: 其他 (子女撫育費、公用協助、禮物等等) | D23: =每月大學生活預算!P36 -> 
